[Event "Titled Tuesday Blitz August 15 Late 2023"]
[White "Pesotskiy, Mikhail"]
[Black "Karamsetty, Jeevan"]
[WhiteFideId "34164453"]
[BlackFideId "2025337"]
[WhiteElo "2432"]
[BlackElo "2510"]
[Result "0-1"]
[Round "9"]
[TimeControl "180+1"]
[Date "2023.08.15"]
[WhiteClock "0:00:00"]
[BlackClock "0:00:16"]
[Board "75"]

1. d4 {[%clk 0:03:00]}  Nf6 {[%clk 0:02:58]} 2. c4 {[%clk 0:03:00]}  e6 {[%clk 0:02:59]} 3. Nc3 {[%clk 0:03:00]}  Bb4 {[%clk 0:02:58]} 4. Qc2 {[%clk 0:03:01]}  d5 {[%clk 0:02:57]} 5. a3 {[%clk 0:03:01]}  Bxc3+ {[%clk 0:02:56]} 6. Qxc3 {[%clk 0:03:02]}  O-O {[%clk 0:02:55]} 7. Bg5 {[%clk 0:03:02]}  h6 {[%clk 0:02:53]} 8. Bxf6 {[%clk 0:03:02]}  Qxf6 {[%clk 0:02:53]} 9. Nf3 {[%clk 0:03:02]}  Nc6 {[%clk 0:02:48]} 10. e3 {[%clk 0:03:02]}  Re8 {[%clk 0:02:47]} 11. Rd1 {[%clk 0:03:01]}  a6 {[%clk 0:02:43]} 12. Be2 {[%clk 0:02:58]}  b6 {[%clk 0:02:37]} 13. Ne5 {[%clk 0:02:31]}  Bb7 {[%clk 0:02:34]} 14. cxd5 {[%clk 0:02:29]}  exd5 {[%clk 0:02:31]} 15. Nxc6 {[%clk 0:02:29]}  Bxc6 {[%clk 0:02:32]} 16. O-O {[%clk 0:02:25]}  Re6 {[%clk 0:02:30]} 17. Rc1 {[%clk 0:02:22]}  Qe7 {[%clk 0:02:24]} 18. Qb4 {[%clk 0:02:17]}  Qg5 {[%clk 0:02:19]} 19. Rc2 {[%clk 0:02:12]}  Rg6 {[%clk 0:02:16]} 20. g3 {[%clk 0:02:04]}  Re8 {[%clk 0:02:01]} 21. Bxa6 {[%clk 0:01:58]}  h5 {[%clk 0:01:52]} 22. Rfc1 {[%clk 0:01:53]}  Ree6 {[%clk 0:01:52]} 23. Bd3 {[%clk 0:01:45]}  Rgf6 {[%clk 0:01:38]} 24. Bb5 {[%clk 0:01:15]}  Bxb5 {[%clk 0:01:20]} 25. Qxb5 {[%clk 0:01:15]}  h4 {[%clk 0:01:15]} 26. Rxc7 {[%clk 0:00:48]}  hxg3 {[%clk 0:01:09]} 27. hxg3 {[%clk 0:00:49]}  Rxe3 {[%clk 0:01:04]} 28. R7c3 {[%clk 0:00:21]}  Rxf2 {[%clk 0:00:36]} 29. Kxf2 {[%clk 0:00:11]}  Qxg3+ {[%clk 0:00:36]} 30. Kf1 {[%clk 0:00:11]}  Qf4+ {[%clk 0:00:34]} 31. Kg1 {[%clk 0:00:07]}  Qxd4 {[%clk 0:00:19]} 32. Rc8+ {[%clk 0:00:01]}  Kh7 {[%clk 0:00:19]} 33. Qf1 {[%clk 0:00:00]}  Rg3+ {[%clk 0:00:16]} 0-1


[Site "https://www.chess.com"]

[Event "Titled Tuesday Blitz August 15 Late 2023"]
[White "Radivojevic, Ivan"]
[Black "Reprintsev, Alexander"]
[WhiteFideId "928461"]
[BlackFideId "14100541"]
[WhiteElo "2410"]
[BlackElo "2497"]
[Result "1-0"]
[Round "9"]
[TimeControl "180+1"]
[Date "2023.08.15"]
[WhiteClock "0:00:05"]
[BlackClock "0:00:00"]
[Board "76"]

1. e4 {[%clk 0:03:00]}  d5 {[%clk 0:02:59]} 2. exd5 {[%clk 0:03:00]}  Qxd5 {[%clk 0:02:59]} 3. Nc3 {[%clk 0:03:01]}  Qd6 {[%clk 0:02:59]} 4. d4 {[%clk 0:02:51]}  c6 {[%clk 0:02:59]} 5. g3 {[%clk 0:02:51]}  Bf5 {[%clk 0:02:12]} 6. Bf4 {[%clk 0:02:50]}  Qb4 {[%clk 0:02:09]} 7. Rb1 {[%clk 0:02:49]}  e6 {[%clk 0:02:08]} 8. Bg2 {[%clk 0:02:46]}  Nf6 {[%clk 0:02:04]} 9. a3 {[%clk 0:02:42]}  Qa5 {[%clk 0:02:03]} 10. Qd2 {[%clk 0:02:41]}  Nbd7 {[%clk 0:01:56]} 11. Nf3 {[%clk 0:02:40]}  Be7 {[%clk 0:01:49]} 12. O-O {[%clk 0:02:35]}  O-O {[%clk 0:01:48]} 13. Rfe1 {[%clk 0:02:23]}  Rfe8 {[%clk 0:01:45]} 14. Ne5 {[%clk 0:02:21]}  Nxe5 {[%clk 0:01:44]} 15. dxe5 {[%clk 0:02:21]}  Rad8 {[%clk 0:01:37]} 16. Qe2 {[%clk 0:02:02]}  Nd5 {[%clk 0:01:35]} 17. Nxd5 {[%clk 0:01:59]}  cxd5 {[%clk 0:01:35]} 18. Rbd1 {[%clk 0:01:49]}  Qb6 {[%clk 0:01:29]} 19. c3 {[%clk 0:01:47]}  a5 {[%clk 0:01:07]} 20. h4 {[%clk 0:01:47]}  h6 {[%clk 0:01:05]} 21. Kh2 {[%clk 0:01:35]}  Bc5 {[%clk 0:01:00]} 22. Rf1 {[%clk 0:01:35]}  d4 {[%clk 0:00:59]} 23. cxd4 {[%clk 0:01:29]}  Rxd4 {[%clk 0:00:58]} 24. Rc1 {[%clk 0:01:17]}  Bd3 {[%clk 0:00:45]} 25. Qf3 {[%clk 0:00:30]}  Bxf1 {[%clk 0:00:43]} 26. Bxf1 {[%clk 0:00:31]}  Rdd8 {[%clk 0:00:15]} 27. Bd3 {[%clk 0:00:29]}  Bxf2 {[%clk 0:00:11]} 28. Qe4 {[%clk 0:00:29]}  Rxd3 {[%clk 0:00:11]} 29. Qxd3 {[%clk 0:00:30]}  Qxb2 {[%clk 0:00:09]} 30. Rc2 {[%clk 0:00:29]}  Qb6 {[%clk 0:00:09]} 31. Qf3 {[%clk 0:00:17]}  Bg1+ {[%clk 0:00:09]} 32. Kh3 {[%clk 0:00:17]}  Bc5 {[%clk 0:00:10]} 33. Qg4 {[%clk 0:00:17]}  Bf8 {[%clk 0:00:09]} 34. Bxh6 {[%clk 0:00:16]}  Rd8 {[%clk 0:00:08]} 35. Bf4 {[%clk 0:00:15]}  Rd3 {[%clk 0:00:07]} 36. Qe2 {[%clk 0:00:14]}  Qd4 {[%clk 0:00:06]} 37. Qg4 {[%clk 0:00:10]}  Qg1 {[%clk 0:00:05]} 38. Qe2 {[%clk 0:00:08]}  Rxa3 {[%clk 0:00:05]} 39. h5 {[%clk 0:00:07]}  Qh1+ {[%clk 0:00:05]} 40. Kg4 {[%clk 0:00:07]}  Ra1 {[%clk 0:00:03]} 41. Rc7 {[%clk 0:00:06]}  Rf1 {[%clk 0:00:00]} 42. Rc8 {[%clk 0:00:05]} 1-0


[Site "https://www.chess.com"]

[Event "Titled Tuesday Blitz August 15 Late 2023"]
[White "Fernandez Garcia, Gumersindo"]
[Black "Seletsky, Grigory"]
[WhiteFideId "24516740"]
[BlackFideId "14112191"]
[WhiteElo "2403"]
[BlackElo "2489"]
[Result "0-1"]
[Round "9"]
[TimeControl "180+1"]
[Date "2023.08.15"]
[WhiteClock "0:00:05"]
[BlackClock "0:01:29"]
[Board "77"]

1. e4 {[%clk 0:02:58]}  e6 {[%clk 0:02:57]} 2. d4 {[%clk 0:02:55]}  d5 {[%clk 0:02:57]} 3. Bd3 {[%clk 0:02:55]}  c6 {[%clk 0:02:56]} 4. Nc3 {[%clk 0:02:48]}  b6 {[%clk 0:02:56]} 5. Nf3 {[%clk 0:02:47]}  Ba6 {[%clk 0:02:56]} 6. Bxa6 {[%clk 0:02:46]}  Nxa6 {[%clk 0:02:57]} 7. O-O {[%clk 0:02:47]}  Nf6 {[%clk 0:02:54]} 8. Bg5 {[%clk 0:02:45]}  Be7 {[%clk 0:02:54]} 9. e5 {[%clk 0:02:43]}  Nd7 {[%clk 0:02:54]} 10. Bxe7 {[%clk 0:02:43]}  Qxe7 {[%clk 0:02:53]} 11. Qe2 {[%clk 0:02:43]}  Nc7 {[%clk 0:02:51]} 12. h4 {[%clk 0:02:42]}  O-O {[%clk 0:02:51]} 13. Rad1 {[%clk 0:02:37]}  c5 {[%clk 0:02:50]} 14. Nb5 {[%clk 0:02:36]}  Nxb5 {[%clk 0:02:47]} 15. Qxb5 {[%clk 0:02:35]}  cxd4 {[%clk 0:02:40]} 16. Rxd4 {[%clk 0:02:35]}  Rfc8 {[%clk 0:02:40]} 17. c3 {[%clk 0:02:35]}  Nc5 {[%clk 0:02:33]} 18. Rg4 {[%clk 0:02:22]}  Ne4 {[%clk 0:02:31]} 19. Ng5 {[%clk 0:02:20]}  Nxg5 {[%clk 0:02:28]} 20. Rxg5 {[%clk 0:02:14]}  Rc4 {[%clk 0:02:26]} 21. f4 {[%clk 0:01:53]}  Qc5+ {[%clk 0:02:23]} 22. Qxc5 {[%clk 0:01:50]}  bxc5 {[%clk 0:02:23]} 23. Rg3 {[%clk 0:01:47]}  Re4 {[%clk 0:02:19]} 24. Rgf3 {[%clk 0:01:39]}  g6 {[%clk 0:02:18]} 25. g3 {[%clk 0:01:37]}  h5 {[%clk 0:02:17]} 26. Kg2 {[%clk 0:01:35]}  a5 {[%clk 0:02:17]} 27. R1f2 {[%clk 0:01:32]}  a4 {[%clk 0:02:17]} 28. Rd2 {[%clk 0:01:30]}  Rb8 {[%clk 0:02:16]} 29. Rff2 {[%clk 0:01:29]}  Re3 {[%clk 0:02:14]} 30. Rfe2 {[%clk 0:01:27]}  Rxe2+ {[%clk 0:02:12]} 31. Rxe2 {[%clk 0:01:28]}  c4 {[%clk 0:02:09]} 32. Kf3 {[%clk 0:01:27]}  a3 {[%clk 0:02:09]} 33. bxa3 {[%clk 0:01:25]}  Ra8 {[%clk 0:02:10]} 34. Ke3 {[%clk 0:01:23]}  Rxa3 {[%clk 0:02:10]} 35. Kd4 {[%clk 0:01:24]}  Kf8 {[%clk 0:02:01]} 36. Rc2 {[%clk 0:01:16]}  Ke7 {[%clk 0:01:59]} 37. Kc5 {[%clk 0:01:16]}  Kd7 {[%clk 0:01:57]} 38. Kb4 {[%clk 0:01:13]}  Ra8 {[%clk 0:01:55]} 39. a4 {[%clk 0:01:10]}  Kc6 {[%clk 0:01:56]} 40. a5 {[%clk 0:01:06]}  Rb8+ {[%clk 0:01:54]} 41. Ka4 {[%clk 0:01:06]}  Rb1 {[%clk 0:01:52]} 42. Ra2 {[%clk 0:01:02]}  Kb7 {[%clk 0:01:51]} 43. Ra3 {[%clk 0:00:38]}  Ka6 {[%clk 0:01:50]} 44. Ra2 {[%clk 0:00:37]}  Rb3 {[%clk 0:01:46]} 45. Rc2 {[%clk 0:00:26]}  Rb5 {[%clk 0:01:40]} 46. g4 {[%clk 0:00:20]}  hxg4 {[%clk 0:01:38]} 47. Rg2 {[%clk 0:00:20]}  Rxa5+ {[%clk 0:01:36]} 48. Kb4 {[%clk 0:00:20]}  Rb5+ {[%clk 0:01:36]} 49. Ka4 {[%clk 0:00:20]}  Rb3 {[%clk 0:01:37]} 50. Rxg4 {[%clk 0:00:17]}  Rxc3 {[%clk 0:01:37]} 51. h5 {[%clk 0:00:16]}  gxh5 {[%clk 0:01:35]} 52. Rg5 {[%clk 0:00:16]}  Rf3 {[%clk 0:01:34]} 53. Rxh5 {[%clk 0:00:11]}  Rxf4 {[%clk 0:01:34]} 54. Kb4 {[%clk 0:00:11]}  Kb6 {[%clk 0:01:33]} 55. Rh8 {[%clk 0:00:09]}  Rf5 {[%clk 0:01:32]} 56. Rf8 {[%clk 0:00:08]}  Kc6 {[%clk 0:01:30]} 57. Kc3 {[%clk 0:00:06]}  Kd7 {[%clk 0:01:30]} 58. Kd4 {[%clk 0:00:06]}  Ke7 {[%clk 0:01:29]} 59. Ra8 {[%clk 0:00:07]}  Rf4+ {[%clk 0:01:29]} 60. Kc3 {[%clk 0:00:06]}  Re4 {[%clk 0:01:30]} 61. Ra7+ {[%clk 0:00:05]}  Kf8 {[%clk 0:01:29]} 0-1


[Site "https://www.chess.com"]

[Event "Titled Tuesday Blitz August 15 Late 2023"]
[White "Merino Garcia, Rafael II"]
[Black "Kujawski, Adam"]
[WhiteFideId "2209128"]
[BlackFideId "1100920"]
[WhiteElo "2484"]
[BlackElo "2337"]
[Result "1-0"]
[Round "9"]
[TimeControl "180+1"]
[Date "2023.08.15"]
[WhiteClock "0:00:22"]
[BlackClock "0:00:00"]
[Board "78"]

1. d4 {[%clk 0:02:58]}  Nf6 {[%clk 0:02:59]} 2. Nf3 {[%clk 0:02:58]}  c5 {[%clk 0:02:58]} 3. d5 {[%clk 0:02:58]}  e6 {[%clk 0:02:59]} 4. Nc3 {[%clk 0:02:57]}  exd5 {[%clk 0:02:59]} 5. Nxd5 {[%clk 0:02:57]}  Nxd5 {[%clk 0:02:59]} 6. Qxd5 {[%clk 0:02:57]}  Be7 {[%clk 0:03:00]} 7. Bg5 {[%clk 0:02:50]}  O-O {[%clk 0:02:50]} 8. Bxe7 {[%clk 0:02:46]}  Qxe7 {[%clk 0:02:50]} 9. O-O-O {[%clk 0:02:47]}  Nc6 {[%clk 0:02:45]} 10. e3 {[%clk 0:02:20]}  Nb4 {[%clk 0:02:32]} 11. Qb3 {[%clk 0:02:16]}  d5 {[%clk 0:01:25]} 12. a3 {[%clk 0:02:15]}  a5 {[%clk 0:01:23]} 13. axb4 {[%clk 0:01:51]}  axb4 {[%clk 0:01:09]} 14. c3 {[%clk 0:01:41]}  Bd7 {[%clk 0:00:30]} 15. Qxd5 {[%clk 0:01:20]}  Ra1+ {[%clk 0:00:20]} 16. Kc2 {[%clk 0:01:16]}  b3+ {[%clk 0:00:19]} 17. Qxb3 {[%clk 0:01:03]}  Ba4 {[%clk 0:00:16]} 18. Rxa1 {[%clk 0:01:03]}  Bxb3+ {[%clk 0:00:16]} 19. Kxb3 {[%clk 0:01:03]}  b5 {[%clk 0:00:06]} 20. Bxb5 {[%clk 0:00:58]}  Rb8 {[%clk 0:00:06]} 21. c4 {[%clk 0:00:58]}  Qe6 {[%clk 0:00:05]} 22. Ra5 {[%clk 0:00:45]}  Qg6 {[%clk 0:00:04]} 23. Ne5 {[%clk 0:00:30]}  Qxg2 {[%clk 0:00:04]} 24. Rd1 {[%clk 0:00:28]}  Qxf2 {[%clk 0:00:03]} 25. Rd3 {[%clk 0:00:28]}  Qf1 {[%clk 0:00:03]} 26. Kc2 {[%clk 0:00:23]}  f6 {[%clk 0:00:03]} 27. Nc6 {[%clk 0:00:22]}  Qe2+ {[%clk 0:00:00]} 28. Rd2 {[%clk 0:00:22]} 1-0


[Site "https://www.chess.com"]

[Event "Titled Tuesday Blitz August 15 Late 2023"]
[White "Hirneise, Jens"]
[Black "Martinez, Shawn"]
[WhiteFideId "24614734"]
[BlackFideId "2039770"]
[WhiteElo "2473"]
[BlackElo "2323"]
[Result "1/2-1/2"]
[Round "9"]
[TimeControl "180+1"]
[Date "2023.08.15"]
[WhiteClock "0:00:04"]
[BlackClock "0:00:06"]
[Board "80"]

1. d4 {[%clk 0:02:48]}  g6 {[%clk 0:02:55]} 2. Nf3 {[%clk 0:02:40]}  Bg7 {[%clk 0:02:55]} 3. c3 {[%clk 0:02:17]}  d6 {[%clk 0:02:54]} 4. Bf4 {[%clk 0:02:16]}  a6 {[%clk 0:02:52]} 5. e3 {[%clk 0:02:15]}  b6 {[%clk 0:02:53]} 6. Nbd2 {[%clk 0:02:13]}  Bb7 {[%clk 0:02:53]} 7. h3 {[%clk 0:02:14]}  Nd7 {[%clk 0:02:54]} 8. Bh2 {[%clk 0:02:13]}  e5 {[%clk 0:02:48]} 9. dxe5 {[%clk 0:02:13]}  dxe5 {[%clk 0:02:47]} 10. Qc2 {[%clk 0:02:12]}  Qe7 {[%clk 0:02:47]} 11. O-O-O {[%clk 0:02:08]}  Ngf6 {[%clk 0:02:44]} 12. Nc4 {[%clk 0:02:02]}  Ne4 {[%clk 0:02:36]} 13. Bd3 {[%clk 0:01:44]}  Nec5 {[%clk 0:02:30]} 14. e4 {[%clk 0:01:36]}  Nxd3+ {[%clk 0:02:14]} 15. Qxd3 {[%clk 0:01:37]}  Bh6+ {[%clk 0:02:07]} 16. Kb1 {[%clk 0:01:27]}  Nc5 {[%clk 0:02:07]} 17. Qe2 {[%clk 0:01:27]}  Bxe4+ {[%clk 0:02:05]} 18. Ka1 {[%clk 0:01:26]}  f6 {[%clk 0:02:00]} 19. b4 {[%clk 0:01:23]}  Bd3 {[%clk 0:01:45]} 20. Rxd3 {[%clk 0:01:18]}  Nxd3 {[%clk 0:01:46]} 21. Qxd3 {[%clk 0:01:19]}  O-O {[%clk 0:01:46]} 22. Re1 {[%clk 0:01:03]}  Rad8 {[%clk 0:01:44]} 23. Qe4 {[%clk 0:01:03]}  Bg7 {[%clk 0:01:40]} 24. Nb2 {[%clk 0:00:56]}  b5 {[%clk 0:01:35]} 25. Qc2 {[%clk 0:00:48]}  Qd7 {[%clk 0:01:29]} 26. Rd1 {[%clk 0:00:43]}  Qc6 {[%clk 0:01:29]} 27. Rxd8 {[%clk 0:00:40]}  Rxd8 {[%clk 0:01:29]} 28. Kb1 {[%clk 0:00:41]}  Bh6 {[%clk 0:01:24]} 29. c4 {[%clk 0:00:34]}  e4 {[%clk 0:01:11]} 30. Ne1 {[%clk 0:00:21]}  Rd2 {[%clk 0:01:10]} 31. Qc3 {[%clk 0:00:21]}  Rxf2 {[%clk 0:01:04]} 32. Bg3 {[%clk 0:00:21]}  Rf1 {[%clk 0:00:52]} 33. c5 {[%clk 0:00:19]}  Qd7 {[%clk 0:00:45]} 34. Kc2 {[%clk 0:00:19]}  e3 {[%clk 0:00:36]} 35. Qd3 {[%clk 0:00:16]}  Qxd3+ {[%clk 0:00:33]} 36. Kxd3 {[%clk 0:00:17]}  f5 {[%clk 0:00:31]} 37. Ke2 {[%clk 0:00:17]}  Rh1 {[%clk 0:00:31]} 38. Nbd3 {[%clk 0:00:17]}  g5 {[%clk 0:00:30]} 39. Bxc7 {[%clk 0:00:15]}  Kf7 {[%clk 0:00:25]} 40. Be5 {[%clk 0:00:13]}  Ke6 {[%clk 0:00:24]} 41. Kxe3 {[%clk 0:00:12]}  g4+ {[%clk 0:00:22]} 42. Ke2 {[%clk 0:00:10]}  gxh3 {[%clk 0:00:22]} 43. gxh3 {[%clk 0:00:11]}  Rxh3 {[%clk 0:00:21]} 44. c6 {[%clk 0:00:12]}  Rh2+ {[%clk 0:00:19]} 45. Kd1 {[%clk 0:00:09]}  Rxa2 {[%clk 0:00:19]} 46. Bc3 {[%clk 0:00:08]}  Bf8 {[%clk 0:00:15]} 47. c7 {[%clk 0:00:08]}  Kd7 {[%clk 0:00:15]} 48. Be5 {[%clk 0:00:08]}  Kc8 {[%clk 0:00:15]} 49. Nf3 {[%clk 0:00:07]}  a5 {[%clk 0:00:16]} 50. bxa5 {[%clk 0:00:07]}  Rxa5 {[%clk 0:00:16]} 51. Nd4 {[%clk 0:00:07]}  b4 {[%clk 0:00:15]} 52. Nxf5 {[%clk 0:00:05]}  Rd5 {[%clk 0:00:14]} 53. Kc2 {[%clk 0:00:05]}  b3+ {[%clk 0:00:15]} 54. Kc3 {[%clk 0:00:04]}  Rxe5 {[%clk 0:00:11]} 55. Nxe5 {[%clk 0:00:04]}  Kxc7 {[%clk 0:00:12]} 56. Kxb3 {[%clk 0:00:04]}  Kd8 {[%clk 0:00:09]} 57. Kc4 {[%clk 0:00:04]}  Ke8 {[%clk 0:00:09]} 58. Kd5 {[%clk 0:00:05]}  Ba3 {[%clk 0:00:08]} 59. Ke6 {[%clk 0:00:05]}  Bb2 {[%clk 0:00:08]} 60. Nf3 {[%clk 0:00:04]}  Kf8 {[%clk 0:00:09]} 61. Ng5 {[%clk 0:00:04]}  Kg8 {[%clk 0:00:09]} 62. Nf3 {[%clk 0:00:01]}  h5 {[%clk 0:00:09]} 63. Kd5 {[%clk 0:00:02]}  Kh7 {[%clk 0:00:09]} 64. Ke4 {[%clk 0:00:03]}  Kg6 {[%clk 0:00:10]} 65. N5h4+ {[%clk 0:00:02]}  Kh6 {[%clk 0:00:10]} 66. Kf5 {[%clk 0:00:03]}  Bc1 {[%clk 0:00:10]} 67. Ne5 {[%clk 0:00:03]}  Bd2 {[%clk 0:00:09]} 68. Nf7+ {[%clk 0:00:04]}  Kh7 {[%clk 0:00:08]} 69. Nd6 {[%clk 0:00:04]}  Kh6 {[%clk 0:00:08]} 70. Ne4 {[%clk 0:00:04]}  Bc1 {[%clk 0:00:08]} 71. Ke5 {[%clk 0:00:03]}  Bg5 {[%clk 0:00:06]} 72. Nf5+ {[%clk 0:00:02]}  Kg6 {[%clk 0:00:06]} 73. Nfg3 {[%clk 0:00:01]}  h4 {[%clk 0:00:06]} 74. Nf1 {[%clk 0:00:01]}  Kh5 {[%clk 0:00:06]} 75. Nf2 {[%clk 0:00:02]}  Bh6 {[%clk 0:00:06]} 76. Nh3 {[%clk 0:00:03]}  Kg4 {[%clk 0:00:06]} 77. Ng1 {[%clk 0:00:03]}  h3 {[%clk 0:00:06]} 78. Nxh3 {[%clk 0:00:04]}  Kxh3 {[%clk 0:00:06]} 1/2-1/2


[Site "https://www.chess.com"]

[Event "Titled Tuesday Blitz August 15 Late 2023"]
[White "Topalov, Aleksandar"]
[Black "Gasparyan, David"]
[WhiteFideId "925659"]
[BlackFideId "13311980"]
[WhiteElo "2367"]
[BlackElo "2529"]
[Result "1-0"]
[Round "9"]
[TimeControl "180+1"]
[Date "2023.08.15"]
[WhiteClock "0:00:27"]
[BlackClock "0:00:00"]
[Board "83"]

1. b3 {[%clk 0:03:00]}  d5 {[%clk 0:02:49]} 2. Bb2 {[%clk 0:03:00]}  Bf5 {[%clk 0:02:50]} 3. Nf3 {[%clk 0:03:00]}  Nc6 {[%clk 0:02:50]} 4. e3 {[%clk 0:02:56]}  a6 {[%clk 0:02:49]} 5. a3 {[%clk 0:02:56]}  Qd7 {[%clk 0:02:49]} 6. c4 {[%clk 0:02:55]}  e6 {[%clk 0:02:49]} 7. Be2 {[%clk 0:02:51]}  Bd6 {[%clk 0:02:46]} 8. O-O {[%clk 0:02:49]}  Nf6 {[%clk 0:02:43]} 9. d3 {[%clk 0:02:48]}  O-O-O {[%clk 0:02:35]} 10. Nbd2 {[%clk 0:02:44]}  h5 {[%clk 0:02:19]} 11. b4 {[%clk 0:02:42]}  dxc4 {[%clk 0:01:53]} 12. Nxc4 {[%clk 0:02:41]}  h4 {[%clk 0:01:49]} 13. e4 {[%clk 0:02:35]}  h3 {[%clk 0:01:23]} 14. g3 {[%clk 0:02:29]}  Bg6 {[%clk 0:01:18]} 15. e5 {[%clk 0:02:28]}  Be7 {[%clk 0:01:12]} 16. exf6 {[%clk 0:02:27]}  gxf6 {[%clk 0:01:13]} 17. d4 {[%clk 0:02:23]}  Qd5 {[%clk 0:01:11]} 18. Ne3 {[%clk 0:02:07]}  Qd7 {[%clk 0:00:56]} 19. Qa4 {[%clk 0:02:00]}  Be4 {[%clk 0:00:49]} 20. b5 {[%clk 0:01:56]}  Nb8 {[%clk 0:00:46]} 21. Nd2 {[%clk 0:01:44]}  Bg2 {[%clk 0:00:32]} 22. Rfc1 {[%clk 0:01:43]}  f5 {[%clk 0:00:26]} 23. d5 {[%clk 0:01:22]}  f4 {[%clk 0:00:20]} 24. Ng4 {[%clk 0:01:09]}  fxg3 {[%clk 0:00:18]} 25. hxg3 {[%clk 0:01:03]}  Bxd5 {[%clk 0:00:17]} 26. Nh2 {[%clk 0:00:56]}  Bg5 {[%clk 0:00:13]} 27. Ndf3 {[%clk 0:00:51]}  Bxc1 {[%clk 0:00:11]} 28. Rxc1 {[%clk 0:00:51]}  Rh5 {[%clk 0:00:10]} 29. Ne5 {[%clk 0:00:45]}  Qd6 {[%clk 0:00:10]} 30. bxa6 {[%clk 0:00:41]}  bxa6 {[%clk 0:00:06]} 31. Nc4 {[%clk 0:00:34]}  Bxc4 {[%clk 0:00:04]} 32. Qxc4 {[%clk 0:00:32]}  Rd5 {[%clk 0:00:02]} 33. Bf3 {[%clk 0:00:31]}  Rd2 {[%clk 0:00:00]} 34. Bc3 {[%clk 0:00:27]} 1-0


[Site "https://www.chess.com"]

[Event "Titled Tuesday Blitz August 15 Late 2023"]
[White "Ouellet, Maili-Jade"]
[Black "Arutla, Aditya"]
[WhiteFideId "2620472"]
[BlackFideId "30961998"]
[WhiteElo "2333"]
[BlackElo "2485"]
[Result "0-1"]
[Round "9"]
[TimeControl "180+1"]
[Date "2023.08.15"]
[WhiteClock "0:00:33"]
[BlackClock "0:00:59"]
[Board "85"]

1. e4 {[%clk 0:02:57]}  c5 {[%clk 0:02:59]} 2. Nf3 {[%clk 0:02:57]}  Nc6 {[%clk 0:02:59]} 3. d4 {[%clk 0:02:57]}  cxd4 {[%clk 0:02:59]} 4. Nxd4 {[%clk 0:02:58]}  Nf6 {[%clk 0:02:59]} 5. Nc3 {[%clk 0:02:58]}  e5 {[%clk 0:02:58]} 6. Ndb5 {[%clk 0:02:59]}  d6 {[%clk 0:02:58]} 7. Bg5 {[%clk 0:02:55]}  a6 {[%clk 0:02:57]} 8. Na3 {[%clk 0:02:55]}  b5 {[%clk 0:02:58]} 9. Bxf6 {[%clk 0:02:38]}  gxf6 {[%clk 0:02:59]} 10. Nd5 {[%clk 0:02:38]}  f5 {[%clk 0:02:57]} 11. Bd3 {[%clk 0:02:25]}  Be6 {[%clk 0:02:57]} 12. O-O {[%clk 0:02:21]}  Bg7 {[%clk 0:02:54]} 13. c4 {[%clk 0:02:19]}  b4 {[%clk 0:02:51]} 14. Nc2 {[%clk 0:02:18]}  fxe4 {[%clk 0:02:36]} 15. Bxe4 {[%clk 0:02:18]}  Rb8 {[%clk 0:02:30]} 16. Nf6+ {[%clk 0:01:58]}  Qxf6 {[%clk 0:02:25]} 17. Bxc6+ {[%clk 0:01:57]}  Ke7 {[%clk 0:02:21]} 18. Ne3 {[%clk 0:01:56]}  Qg6 {[%clk 0:02:13]} 19. Qa4 {[%clk 0:01:40]}  e4 {[%clk 0:02:06]} 20. Qxa6 {[%clk 0:01:35]}  Bd4 {[%clk 0:02:02]} 21. Rad1 {[%clk 0:01:29]}  Bc5 {[%clk 0:01:55]} 22. Nd5+ {[%clk 0:01:10]}  Bxd5 {[%clk 0:01:54]} 23. Bxd5 {[%clk 0:01:10]}  Rhg8 {[%clk 0:01:49]} 24. Bxe4 {[%clk 0:00:56]}  Qxe4 {[%clk 0:01:43]} 25. Rfe1 {[%clk 0:00:50]}  Rxg2+ {[%clk 0:01:17]} 26. Kh1 {[%clk 0:00:48]}  Rg4+ {[%clk 0:01:02]} 27. f3 {[%clk 0:00:37]}  Rg1+ {[%clk 0:01:01]} 28. Rxg1 {[%clk 0:00:33]}  Qxf3+ {[%clk 0:00:59]} 0-1


[Site "https://www.chess.com"]

[Event "Titled Tuesday Blitz August 15 Late 2023"]
[White "Buchenau, Frank"]
[Black "Okike, David"]
[WhiteFideId "4604350"]
[BlackFideId "8500134"]
[WhiteElo "2430"]
[BlackElo "2323"]
[Result "1-0"]
[Round "9"]
[TimeControl "180+1"]
[Date "2023.08.15"]
[WhiteClock "0:01:21"]
[BlackClock "0:02:12"]
[Board "88"]

1. e4 {[%clk 0:02:57]}  c5 {[%clk 0:02:56]} 2. Nf3 {[%clk 0:02:57]}  Nc6 {[%clk 0:02:56]} 3. Bb5 {[%clk 0:02:56]}  g6 {[%clk 0:02:54]} 4. Bxc6 {[%clk 0:02:56]}  bxc6 {[%clk 0:02:54]} 5. O-O {[%clk 0:02:55]}  Bg7 {[%clk 0:02:54]} 6. Re1 {[%clk 0:02:55]}  d6 {[%clk 0:02:53]} 7. c3 {[%clk 0:02:54]}  Nh6 {[%clk 0:02:51]} 8. d4 {[%clk 0:02:53]}  cxd4 {[%clk 0:02:52]} 9. cxd4 {[%clk 0:02:53]}  O-O {[%clk 0:02:52]} 10. h3 {[%clk 0:02:47]}  Qb6 {[%clk 0:02:52]} 11. Nc3 {[%clk 0:02:36]}  f5 {[%clk 0:02:51]} 12. e5 {[%clk 0:02:32]}  Nf7 {[%clk 0:02:50]} 13. b3 {[%clk 0:02:22]}  h6 {[%clk 0:02:46]} 14. h4 {[%clk 0:02:17]}  Kh7 {[%clk 0:02:45]} 15. Be3 {[%clk 0:02:08]}  Qa6 {[%clk 0:02:40]} 16. exd6 {[%clk 0:02:03]}  exd6 {[%clk 0:02:40]} 17. Rc1 {[%clk 0:01:57]}  Bd7 {[%clk 0:02:39]} 18. Qd2 {[%clk 0:01:50]}  Rae8 {[%clk 0:02:38]} 19. d5 {[%clk 0:01:49]}  c5 {[%clk 0:02:37]} 20. Ne2 {[%clk 0:01:42]}  Ne5 {[%clk 0:02:28]} 21. Nxe5 {[%clk 0:01:41]}  Rxe5 {[%clk 0:02:26]} 22. Bf4 {[%clk 0:01:34]}  Re4 {[%clk 0:02:23]} 23. Nc3 {[%clk 0:01:32]}  Rxe1+ {[%clk 0:02:20]} 24. Rxe1 {[%clk 0:01:32]}  Re8 {[%clk 0:02:21]} 25. Rxe8 {[%clk 0:01:31]}  Bxe8 {[%clk 0:02:21]} 26. Qe2 {[%clk 0:01:22]}  Bf7 {[%clk 0:02:12]} 27. Qxa6 {[%clk 0:01:21]} 1-0


[Site "https://www.chess.com"]